[Event "RUS-ch Rapid Men 2018"]
[Site "Sochi"]
[Date "2018.10.05"]
[Round "1"]
[White "Morozevich, Alexander"]
[Black "Cherenkov, Andrey"]
[Result "1/2-1/2"]
[ECO "B12"]
[WhiteElo "2656"]
[BlackElo "2226"]
[Annotator "ChessBase"]
[PlyCount "95"]
[EventDate "2018.10.05"]
[EventType "swiss"]
[EventCountry "RUS"]
[SourceTitle "playchess.com"]
[Source "ChessBase"]
[SourceQuality "1"]
[TimeControl "900+10"]

1. e4 {[%emt 0:00:00]} c6 {[%emt 0:00:00]} 2. d4 {[%emt 0:00:07]} d5 {[%emt 0:00:00]} 3. e5 {[%emt 0:00:01]} Bf5 {[%emt 0:00:00]} 4. h4 {[%emt 0:00:21]} h6 {[%emt 0:00:01]} 5. g4 {[%emt 0:00:06]} Bd7 {[%emt 0:00:03]} 6. Be3 {[%emt 0:00:03]} e6 {[%emt 0:00:13]} 7. Nf3 {[%emt 0:01:00]} Qb6 {[%emt 0:00:17]} 8. c4 {[%emt 0:00:58]} Qxb2 {[%emt 0:00:50]} 9. Nbd2 {[%emt 0:00:02]} Bb4 {[%emt 0:00:34]} 10. Rb1 {[%emt 0:00:05]} Qa3 {[%emt 0:00:10]} 11. Rb3 {[%emt 0:01:04]} Qa5 {[%emt 0:00:09]} 12. Qb1 {[%emt 0:01:24]} Na6 {[%emt 0:00:22]} 13. c5 {[%emt 0:05:14]} Bc8 {[%emt 0:05:06]} 14. a3 {[%emt 0:01:33]} Bxa3 {[%emt 0:00:57]} 15. Bxa6 {[%emt 0:01:20]} Qxa6 {[%emt 0:00:46]} 16. Qa1 {[%emt 0:01:05]} Bb4 {[%emt 0:00:13]} 17. Qxa6 {[%emt 0:00:01]} Bxd2+ {[%emt 0:00:02]} 18. Bxd2 {[%emt 0:00:19]} bxa6 {[%emt 0:00:02]} 19. h5 {[%emt 0:00:01]} a5 {[%emt 0:01:04]} 20. Bxa5 {[%emt 0:00:01]} Ba6 {[%emt 0:00:01]} 21. Kd2 {[%emt 0:00:01]} Bb5 {[%emt 0:00:50]} 22. Ra1 {[%emt 0:00:00]} Kd7 {[%emt 0:00:52]} 23. Nh4 {[%emt 0:02:07]} Ne7 {[%emt 0:00:39]} 24. f4 {[%emt 0:00:01]} Rhb8 {[%emt 0:00:14]} 25. f5 {[%emt 0:00:19]} Bc4 {[%emt 0:01:08]} 26. Rxb8 {[%emt 0:00:02]} Rxb8 {[%emt 0:00:00]} 27. Bc3 {[%emt 0:00:00]} a6 {[%emt 0:00:09]} 28. Re1 {[%emt 0:00:55]} Rb3 {[%emt 0:00:33]} 29. Re3 {[%emt 0:00:16]} Rb1 {[%emt 0:00:54]} 30. f6 {[%emt 0:00:26]} gxf6 {[%emt 0:00:07]} 31. exf6 {[%emt 0:00:01]} Ng8 {[%emt 0:00:30]} 32. Rf3 {[%emt 0:00:01]} Rf1 {[%emt 0:00:09]} 33. Rxf1 {[%emt 0:00:09]} Bxf1 {[%emt 0:00:01]} 34. Nf3 {[%emt 0:00:06]} Nxf6 {[%emt 0:01:15]} 35. Ne5+ {[%emt 0:00:00]} Ke8 {[%emt 0:00:32]} 36. Ke1 {[%emt 0:00:02]} Bh3 {[%emt 0:00:15]} 37. g5 {[%emt 0:00:01]} hxg5 {[%emt 0:00:01]} 38. h6 {[%emt 0:00:00]} Bf5 {[%emt 0:00:21]} 39. Nxc6 {[%emt 0:00:01]} Ng8 {[%emt 0:00:09]} 40. Na7 {[%emt 0:00:14]} Nxh6 {[%emt 0:00:24]} 41. c6 {[%emt 0:00:01]} f6 {[%emt 0:01:07]} 42. c7 {[%emt 0:00:08]} e5 {[%emt 0:00:01]} 43. dxe5 {[%emt 0:00:01]} fxe5 {[%emt 0:00:09]} 44. Bxe5 {[%emt 0:00:00]} Nf7 {[%emt 0:00:13]} 45. Bg3 {[%emt 0:00:08]} a5 {[%emt 0:00:14]} 46. Kd2 {[%emt 0:00:09]} d4 {[%emt 0:00:02]} 47. c8=Q+ {[%emt 0:01:47]} Bxc8 {[%emt 0:00:01]} 48. Nxc8 {[%emt 0:00:01]} 1/2-1/2

[Event "RUS-ch Rapid Men 2018"]
[Site "Sochi"]
[Date "2018.10.05"]
[Round "1"]
[White "Sjugirov, Sanan"]
[Black "Remizov, Yaroslav"]
[Result "1-0"]
[ECO "A06"]
[WhiteElo "2654"]
[BlackElo "2315"]
[Annotator "ChessBase"]
[PlyCount "51"]
[EventDate "2018.10.05"]
[EventType "swiss"]
[EventCountry "RUS"]
[SourceTitle "playchess.com"]
[Source "ChessBase"]
[SourceQuality "1"]
[TimeControl "900+10"]

1. Nf3 {[%emt 0:00:00]} d5 {[%emt 0:00:00]} 2. e3 {[%emt 0:00:18]} Nf6 {[%emt 0:00:31]} 3. c4 {[%emt 0:00:05]} c6 {[%emt 0:00:35]} 4. d4 {[%emt 0:00:08]} e6 {[%emt 0:00:10]} 5. Bd3 {[%emt 0:00:24]} Nbd7 {[%emt 0:00:06]} 6. b3 {[%emt 0:00:50]} b6 {[%emt 0:01:08]} 7. O-O {[%emt 0:00:13]} Be7 {[%emt 0:00:33]} 8. Bb2 {[%emt 0:00:28]} Bb7 {[%emt 0:00:03]} 9. Nbd2 {[%emt 0:00:10]} O-O {[%emt 0:00:03]} 10. Qe2 {[%emt 0:00:37]} c5 {[%emt 0:01:34]} 11. Rfd1 {[%emt 0:00:23]} Rc8 {[%emt 0:00:44]} 12. Rac1 {[%emt 0:00:31]} cxd4 {[%emt 0:00:17]} 13. Nxd4 {[%emt 0:00:51]} Nc5 {[%emt 0:00:07]} 14. Bc2 {[%emt 0:02:05]} dxc4 {[%emt 0:01:01]} 15. Nxc4 {[%emt 0:00:08]} Qd5 {[%emt 0:00:03]} 16. f3 {[%emt 0:00:48]} Qh5 {[%emt 0:00:01]} 17. b4 {[%emt 0:01:47]} Ncd7 {[%emt 0:07:20]} 18. a3 {[%emt 0:00:08]} Nd5 {[%emt 0:01:04]} 19. Bb3 {[%emt 0:01:32]} Bg5 {[%emt 0:01:06]} 20. f4 {[%emt 0:01:41]} Qxe2 {[%emt 0:00:01]} 21. Nxe2 {[%emt 0:00:02]} Bf6 {[%emt 0:00:01]} 22. Bxf6 {[%emt 0:01:20]} N7xf6 {[%emt 0:00:06]} 23. Nd6 {[%emt 0:00:09]} Nxe3 {[%emt 0:00:59]} 24. Nxc8 {[%emt 0:01:43]} Nxd1 {[%emt 0:00:19]} 25. Ne7+ {[%emt 0:00:06]} Kh8 {[%emt 0:00:01]} 26. Bxd1 {[%emt 0:00:09]} 1-0

[Event "RUS-ch Rapid Men 2018"]
[Site "Sochi"]
[Date "2018.10.05"]
[Round "1"]
[White "Rakhmanov, Aleksandr"]
[Black "Tsvetkov, Andrey"]
[Result "1-0"]
[ECO "D10"]
[WhiteElo "2647"]
[BlackElo "2264"]
[Annotator "ChessBase"]
[PlyCount "73"]
[EventDate "2018.10.05"]
[EventType "swiss"]
[EventCountry "RUS"]
[SourceTitle "playchess.com"]
[Source "ChessBase"]
[SourceQuality "1"]
[TimeControl "900+10"]

1. c4 {[%emt 0:00:00]} c6 {[%emt 0:00:00]} 2. d4 {[%emt 0:00:00]} d5 {[%emt 0:00:00]} 3. cxd5 {[%emt 0:00:00]} cxd5 {[%emt 0:00:00]} 4. Bf4 {[%emt 0:00:00]} Nc6 {[%emt 0:00:00]} 5. e3 {[%emt 0:00:00]} Nf6 {[%emt 0:00:00]} 6. Nc3 {[%emt 0:00:01]} a6 {[%emt 0:00:08]} 7. Be2 {[%emt 0:00:08]} Bf5 {[%emt 0:00:03]} 8. Nf3 {[%emt 0:00:03]} e6 {[%emt 0:00:01]} 9. Qb3 {[%emt 0:01:45]} Bb4 {[%emt 0:02:25]} 10. Ne5 {[%emt 0:00:22]} Qe7 {[%emt 0:02:01]} 11. Nxc6 {[%emt 0:00:22]} bxc6 {[%emt 0:00:03]} 12. O-O {[%emt 0:00:46]} O-O {[%emt 0:00:10]} 13. Rfc1 {[%emt 0:03:13]} Bd6 {[%emt 0:03:45]} 14. Bxd6 {[%emt 0:00:51]} Qxd6 {[%emt 0:00:02]} 15. Na4 {[%emt 0:00:11]} Nd7 {[%emt 0:00:45]} 16. Nc5 {[%emt 0:02:07]} e5 {[%emt 0:00:18]} 17. Nxa6 {[%emt 0:00:41]} exd4 {[%emt 0:01:43]} 18. exd4 {[%emt 0:00:03]} Rfe8 {[%emt 0:00:02]} 19. Bf1 {[%emt 0:00:08]} Re4 {[%emt 0:01:27]} 20. Qc3 {[%emt 0:00:08]} Rh4 {[%emt 0:00:59]} 21. g3 {[%emt 0:02:19]} Rh6 {[%emt 0:00:01]} 22. Nb4 {[%emt 0:00:03]} Re8 {[%emt 0:00:37]} 23. Nxc6 {[%emt 0:01:43]} Be4 {[%emt 0:00:03]} 24. f3 {[%emt 0:00:19]} Bf5 {[%emt 0:00:31]} 25. Qd2 {[%emt 0:01:26]} Rg6 {[%emt 0:00:16]} 26. Rc3 {[%emt 0:00:50]} h5 {[%emt 0:00:24]} 27. Kf2 {[%emt 0:00:43]} h4 {[%emt 0:00:53]} 28. Qf4 {[%emt 0:00:01]} hxg3+ {[%emt 0:00:01]} 29. hxg3 {[%emt 0:00:01]} Qf6 {[%emt 0:00:24]} 30. Re1 {[%emt 0:00:36]} Rxe1 {[%emt 0:01:27]} 31. Kxe1 {[%emt 0:00:01]} Qe6+ {[%emt 0:00:01]} 32. Kd2 {[%emt 0:00:15]} Rf6 {[%emt 0:00:12]} 33. Qe3 {[%emt 0:00:47]} Qd6 34. Ne7+ {[%emt 0:00:03]} Kh8 {[%emt 0:01:07]} 35. Rc8+ {[%emt 0:00:22]} Kh7 {[%emt 0:00:02]} 36. Nxf5 {[%emt 0:00:06]} Qb4+ {[%emt 0:00:41]} 37. Qc3 {[%emt 0:00:14]} 1-0

[Event "RUS-ch Rapid Men 2018"]
[Site "Sochi"]
[Date "2018.10.05"]
[Round "1"]
[White "Lysyj, Igor"]
[Black "Dolgov, Alexey S"]
[Result "1-0"]
[ECO "D85"]
[WhiteElo "2631"]
[BlackElo "2118"]
[Annotator "RC"]
[PlyCount "59"]
[EventDate "2018.10.05"]
[EventType "swiss"]
[EventCountry "RUS"]
[SourceTitle "playchess.com"]
[Source "ChessBase"]
[SourceQuality "1"]
[TimeControl "900+10"]

1. d4 {[%emt 0:00:00]} Nf6 {[%emt 0:00:00]} 2. c4 {[%emt 0:00:00]} g6 {[%emt 0:00:03]} 3. Nc3 {[%emt 0:00:00]} d5 {[%emt 0:00:06]} 4. cxd5 {[%emt 0:00:01]} Nxd5 {[%emt 0:00:05]} 5. e4 {[%emt 0:00:02]} Nxc3 {[%emt 0:00:11]} 6. bxc3 {[%emt 0:00:01]} c5 {[%emt 0:00:31]} 7. Bb5+ {[%emt 0:00:10]} Bd7 {[%emt 0:00:42]} 8. Be2 {[%emt 0:00:03]} Bg7 {[%emt 0:00:13]} 9. Nf3 {[%emt 0:00:02]} O-O {[%emt 0:00:14]} 10. O-O {[%emt 0:00:14]} cxd4 {[%emt 0:00:03]} 11. cxd4 {[%emt 0:00:02]} Bg4 {[%emt 0:00:13]} 12. Be3 {[%emt 0:00:11]} Nc6 {[%emt 0:00:12]} 13. d5 {[%emt 0:00:02]} Bxf3 {[%emt 0:00:53]} 14. Bxf3 {[%emt 0:00:26]} Ne5 {[%emt 0:00:31]} 15. Be2 {[%emt 0:00:14]} b6 {[%emt 0:00:18]} 16. Rc1 {[%emt 0:00:10]} Rc8 {[%emt 0:00:35]} 17. Qa4 {[%emt 0:00:52]} Rxc1 {[%emt 0:03:33]} 18. Rxc1 {[%emt 0:00:04]} a5 {[%emt 0:00:38]} 19. Qb5 {[%emt 0:01:02]} Nd7 {[%emt 0:00:29]} 20. Rc6 {[%emt 0:00:02]} f5 {[%emt 0:01:11]} 21. exf5 {[%emt 0:00:13]} gxf5 {[%emt 0:01:15]} 22. Bf4 {[%emt 0:00:12]} Nf6 {[%emt 0:00:40]} 23. Rxb6 {[%emt 0:00:26]} Kh8 {[%emt 0:00:36]} 24. Bf3 {[%emt 0:00:53]} Ne4 {[%emt 0:00:32]} 25. Bxe4 {[%emt 0:01:02]} fxe4 {[%emt 0:01:13]} 26. Rb8 {[%emt 0:00:02]} Qxb8 {[%emt 0:01:36]} 27. Bxb8 {[%emt 0:00:03]} Bd4 {[%emt 0:00:06]} 28. Bg3 {[%emt 0:00:09]} e3 {[%emt 0:00:02]} 29. Qc4 {[%emt 0:00:20]} exf2+ {[%emt 0:00:16]} 30. Kf1 {[%emt 0:00:02]} 1-0

[Event "RUS-ch Rapid Men 2018"]
[Site "Sochi"]
[Date "2018.10.05"]
[Round "1"]
[White "Paravyan, David"]
[Black "Shemyakin, Valeriy"]
[Result "1-0"]
[ECO "A40"]
[WhiteElo "2629"]
[BlackElo "2213"]
[Annotator "ChessBase"]
[PlyCount "103"]
[EventDate "2018.10.05"]
[EventType "swiss"]
[EventCountry "RUS"]
[SourceTitle "playchess.com"]
[Source "ChessBase"]
[SourceQuality "1"]
[TimeControl "900+10"]

1. d4 {[%emt 0:00:00]} Nf6 {[%emt 0:00:00]} 2. c4 {[%emt 0:00:00]} e6 {[%emt 0:00:00]} 3. g3 {[%emt 0:00:00]} Bb4+ {[%emt 0:00:00]} 4. Bd2 {[%emt 0:00:00]} Qe7 {[%emt 0:00:00]} 5. Bg2 {[%emt 0:00:01]} Nc6 {[%emt 0:00:00]} 6. e3 {[%emt 0:00:24]} O-O {[%emt 0:00:28]} 7. Nc3 {[%emt 0:00:01]} d6 {[%emt 0:01:09]} 8. Nge2 {[%emt 0:00:03]} Bd7 {[%emt 0:03:08]} 9. O-O {[%emt 0:00:07]} a5 {[%emt 0:01:24]} 10. b3 {[%emt 0:00:44]} Rab8 {[%emt 0:02:20]} 11. a3 {[%emt 0:00:02]} Bxc3 {[%emt 0:00:02]} 12. Nxc3 {[%emt 0:00:02]} Na7 {[%emt 0:00:30]} 13. d5 {[%emt 0:00:38]} e5 {[%emt 0:00:39]} 14. e4 {[%emt 0:00:14]} b5 {[%emt 0:00:30]} 15. Be3 {[%emt 0:00:02]} Nc8 {[%emt 0:00:46]} 16. cxb5 {[%emt 0:00:03]} Bxb5 {[%emt 0:00:02]} 17. Nxb5 {[%emt 0:00:01]} Rxb5 {[%emt 0:00:01]} 18. Qd3 {[%emt 0:00:17]} Rb7 {[%emt 0:00:53]} 19. Bd2 {[%emt 0:00:10]} Ra7 {[%emt 0:00:12]} 20. Rfc1 {[%emt 0:00:02]} Nb6 {[%emt 0:00:39]} 21. Rc6 {[%emt 0:00:06]} Nfd7 {[%emt 0:00:09]} 22. Rac1 {[%emt 0:00:11]} Nc5 {[%emt 0:00:04]} 23. Qc2 {[%emt 0:00:05]} a4 {[%emt 0:00:26]} 24. bxa4 {[%emt 0:00:25]} Nbxa4 {[%emt 0:00:26]} 25. h4 {[%emt 0:00:31]} Rb8 {[%emt 0:00:09]} 26. Bb4 {[%emt 0:00:01]} Raa8 {[%emt 0:01:40]} 27. Bh3 {[%emt 0:00:29]} Na6 {[%emt 0:00:46]} 28. Ba5 {[%emt 0:01:09]} N4c5 29. Bf1 {[%emt 0:01:08]} h6 {[%emt 0:00:51]} 30. Rb1 {[%emt 0:00:22]} Rxb1 {[%emt 0:00:17]} 31. Qxb1 {[%emt 0:00:01]} Ra7 {[%emt 0:01:05]} 32. Bxa6 {[%emt 0:02:09]} Nxa6 {[%emt 0:00:02]} 33. Qb5 Qd7 {[%emt 0:00:56]} 34. a4 {[%emt 0:00:22]} Qc8 {[%emt 0:00:06]} 35. Bb6 {[%emt 0:00:25]} Ra8 {[%emt 0:00:15]} 36. Qc4 {[%emt 0:00:06]} Qg4 {[%emt 0:00:26]} 37. Be3 {[%emt 0:00:50]} Nc5 {[%emt 0:00:32]} 38. Bxc5 {[%emt 0:00:09]} dxc5 {[%emt 0:00:01]} 39. Kg2 {[%emt 0:00:13]} Qd1 {[%emt 0:00:08]} 40. d6 {[%emt 0:05:18]} cxd6 {[%emt 0:00:09]} 41. Rc7 {[%emt 0:00:01]} d5 {[%emt 0:00:02]} 42. Qxc5 {[%emt 0:00:33]} dxe4 {[%emt 0:00:05]} 43. Rc8+ {[%emt 0:00:01]} Rxc8 {[%emt 0:00:09]} 44. Qxc8+ {[%emt 0:00:01]} Kh7 {[%emt 0:00:02]} 45. Qf5+ {[%emt 0:00:02]} Kg8 {[%emt 0:00:05]} 46. Qxe4 {[%emt 0:00:02]} Qd6 {[%emt 0:00:17]} 47. a5 {[%emt 0:00:09]} g6 {[%emt 0:00:10]} 48. Qb7 {[%emt 0:00:15]} e4 {[%emt 0:00:27]} 49. a6 {[%emt 0:00:31]} Qf6 {[%emt 0:00:21]} 50. a7 {[%emt 0:00:10]} Qf3+ {[%emt 0:00:02]} 51. Kg1 {[%emt 0:00:01]} Qd1+ {[%emt 0:00:01]} 52. Kh2 {[%emt 0:00:01]} 1-0

[Event "RUS-ch Rapid Men 2018"]
[Site "Sochi"]
[Date "2018.10.05"]
[Round "1"]
[White "Kryakvin, Dmitry"]
[Black "Kuzmin, Roman"]
[Result "1-0"]
[ECO "A45"]
[WhiteElo "2589"]
[BlackElo "2053"]
[Annotator "ChessBase"]
[PlyCount "51"]
[EventDate "2018.10.05"]
[EventType "swiss"]
[EventCountry "RUS"]
[SourceTitle "playchess.com"]
[Source "ChessBase"]
[SourceQuality "1"]
[TimeControl "900+10"]

1. d4 {[%emt 0:00:00]} Nf6 {[%emt 0:00:00]} 2. Bg5 {[%emt 0:00:00]} Ne4 {[%emt 0:00:00]} 3. Bf4 {[%emt 0:00:00]} d5 {[%emt 0:00:00]} 4. e3 {[%emt 0:00:00]} c5 {[%emt 0:00:36]} 5. Bd3 {[%emt 0:00:03]} cxd4 {[%emt 0:00:46]} 6. Bxe4 {[%emt 0:01:04]} dxe4 {[%emt 0:00:17]} 7. exd4 {[%emt 0:00:01]} Nc6 {[%emt 0:00:27]} 8. d5 {[%emt 0:01:46]} e5 {[%emt 0:00:21]} 9. Bg3 {[%emt 0:00:25]} Ne7 {[%emt 0:03:45]} 10. Nc3 {[%emt 0:00:36]} f6 {[%emt 0:00:31]} 11. Qe2 {[%emt 0:01:03]} Nf5 {[%emt 0:02:39]} 12. O-O-O {[%emt 0:01:40]} Nd4 {[%emt 0:00:56]} 13. Qc4 {[%emt 0:01:43]} Bg4 {[%emt 0:01:03]} 14. Rxd4 {[%emt 0:00:45]} Rc8 {[%emt 0:01:30]} 15. Rxe4 {[%emt 0:02:18]} Rxc4 {[%emt 0:00:07]} 16. Rxc4 {[%emt 0:00:01]} Bd7 {[%emt 0:00:15]} 17. f4 {[%emt 0:00:29]} Bd6 {[%emt 0:02:30]} 18. Ne4 {[%emt 0:01:22]} Bb8 {[%emt 0:00:14]} 19. fxe5 {[%emt 0:00:15]} fxe5 {[%emt 0:00:03]} 20. Nf3 {[%emt 0:00:22]} O-O {[%emt 0:00:07]} 21. Nxe5 {[%emt 0:00:26]} Bxe5 {[%emt 0:01:27]} 22. Bxe5 {[%emt 0:00:01]} Rf5 {[%emt 0:00:30]} 23. Bc7 {[%emt 0:00:26]} Qe7 {[%emt 0:00:16]} 24. Rd1 {[%emt 0:00:22]} b5 {[%emt 0:00:24]} 25. Rcd4 {[%emt 0:00:14]} Rf4 {[%emt 0:00:08]} 26. Bxf4 {[%emt 0:00:03]} 1-0

[Event "RUS-ch Rapid Men 2018"]
[Site "Sochi"]
[Date "2018.10.05"]
[Round "1"]
[White "Timofeev, Artyom"]
[Black "Avalyan, Artur"]
[Result "1/2-1/2"]
[ECO "A06"]
[WhiteElo "2588"]
[BlackElo "2347"]
[Annotator "ChessBase"]
[PlyCount "153"]
[EventDate "2018.10.05"]
[EventType "swiss"]
[EventCountry "RUS"]
[SourceTitle "playchess.com"]
[Source "ChessBase"]
[SourceQuality "1"]
[TimeControl "900+10"]

1. Nf3 {[%emt 0:00:00]} d5 {[%emt 0:00:00]} 2. g3 {[%emt 0:00:00]} Nf6 {[%emt 0:00:00]} 3. Bg2 {[%emt 0:00:00]} c6 {[%emt 0:00:02]} 4. O-O {[%emt 0:00:07]} Bf5 {[%emt 0:00:02]} 5. d3 {[%emt 0:00:04]} e6 {[%emt 0:00:05]} 6. Nbd2 {[%emt 0:00:11]} h6 {[%emt 0:00:11]} 7. c4 {[%emt 0:00:05]} Be7 {[%emt 0:00:13]} 8. b3 {[%emt 0:00:14]} O-O {[%emt 0:00:05]} 9. Bb2 {[%emt 0:00:02]} a5 {[%emt 0:00:19]} 10. a3 {[%emt 0:00:15]} Na6 {[%emt 0:00:39]} 11. Qc2 {[%emt 0:00:13]} Re8 {[%emt 0:00:21]} 12. Rad1 {[%emt 0:00:10]} Bh7 {[%emt 0:00:48]} 13. Ne5 {[%emt 0:00:12]} Nd7 {[%emt 0:01:44]} 14. Ndf3 {[%emt 0:00:26]} Nac5 {[%emt 0:01:52]} 15. Ng4 {[%emt 0:01:07]} Bf5 {[%emt 0:01:00]} 16. Qc3 {[%emt 0:00:45]} Nf6 {[%emt 0:00:43]} 17. Nge5 {[%emt 0:00:04]} Qc7 {[%emt 0:00:16]} 18. g4 {[%emt 0:00:43]} Bh7 19. h4 {[%emt 0:00:09]} Rad8 {[%emt 0:03:02]} 20. e3 {[%emt 0:00:33]} Qb6 {[%emt 0:00:39]} 21. g5 {[%emt 0:00:11]} Nh5 {[%emt 0:00:14]} 22. gxh6 {[%emt 0:00:37]} Qxb3 {[%emt 0:00:27]} 23. hxg7 {[%emt 0:00:39]} Qxc3 {[%emt 0:00:09]} 24. Bxc3 {[%emt 0:00:03]} f6 {[%emt 0:00:19]} 25. cxd5 {[%emt 0:01:07]} fxe5 {[%emt 0:00:37]} 26. dxc6 {[%emt 0:00:02]} Bxd3 {[%emt 0:00:44]} 27. Rfe1 {[%emt 0:00:09]} e4 {[%emt 0:00:18]} 28. Ne5 {[%emt 0:00:11]} bxc6 {[%emt 0:00:08]} 29. Bxa5 {[%emt 0:00:42]} Rc8 {[%emt 0:00:17]} 30. Bb4 {[%emt 0:00:17]} Nxg7 {[%emt 0:00:50]} 31. Bxc5 {[%emt 0:01:43]} Bxc5 {[%emt 0:00:01]} 32. Nxd3 {[%emt 0:00:02]} exd3 {[%emt 0:00:01]} 33. Rxd3 {[%emt 0:00:02]} Be7 {[%emt 0:00:07]} 34. a4 {[%emt 0:00:10]} Bxh4 {[%emt 0:00:11]} 35. Rc1 {[%emt 0:00:09]} c5 {[%emt 0:00:34]} 36. a5 {[%emt 0:00:03]} Rf8 {[%emt 0:00:32]} 37. Rd2 {[%emt 0:00:24]} Rf7 {[%emt 0:00:29]} 38. a6 {[%emt 0:00:05]} Ra7 {[%emt 0:00:06]} 39. Bb7 {[%emt 0:00:06]} Rc7 {[%emt 0:00:06]} 40. Rd6 {[%emt 0:01:19]} Be7 {[%emt 0:00:46]} 41. Rb6 {[%emt 0:00:09]} c4 {[%emt 0:00:08]} 42. Be4 {[%emt 0:00:04]} Kf7 {[%emt 0:00:15]} 43. Rb7 {[%emt 0:00:10]} Ne8 {[%emt 0:00:51]} 44. Rxc7 {[%emt 0:02:12]} Nxc7 {[%emt 0:00:01]} 45. Rxc4 {[%emt 0:00:01]} Nxa6 {[%emt 0:00:02]} 46. Ra4 {[%emt 0:00:02]} Bc5 {[%emt 0:00:03]} 47. Bd3 {[%emt 0:00:04]} Nc7 {[%emt 0:00:02]} 48. Rxa7 {[%emt 0:00:02]} Bxa7 {[%emt 0:00:01]} 49. Kg2 {[%emt 0:00:04]} Kf6 {[%emt 0:00:07]} 50. Kf3 {[%emt 0:00:05]} Nd5 {[%emt 0:00:07]} 51. Bc4 {[%emt 0:00:03]} Ne7 {[%emt 0:00:07]} 52. Ke4 {[%emt 0:00:04]} Nf5 {[%emt 0:00:10]} 53. Bb3 {[%emt 0:00:04]} Nd6+ {[%emt 0:00:08]} 54. Kf4 {[%emt 0:00:03]} Bb8 {[%emt 0:00:09]} 55. Kf3 {[%emt 0:00:01]} Nf7 {[%emt 0:00:06]} 56. Ke2 {[%emt 0:00:05]} Nd6 {[%emt 0:01:11]} 57. Kd3 {[%emt 0:00:08]} Ba7 {[%emt 0:00:10]} 58. Ba2 {[%emt 0:00:03]} Nf5 {[%emt 0:00:45]} 59. Bb3 {[%emt 0:00:04]} Nh6 {[%emt 0:00:11]} 60. Ke4 {[%emt 0:00:15]} Ng4 {[%emt 0:00:13]} 61. Kf3 {[%emt 0:00:02]} Ne5+ {[%emt 0:00:01]} 62. Ke4 {[%emt 0:00:04]} Bb6 {[%emt 0:00:06]} 63. Ba2 {[%emt 0:00:02]} Nd7 {[%emt 0:00:03]} 64. Kf3 {[%emt 0:00:07]} Ke5 {[%emt 0:00:05]} 65. Ke2 {[%emt 0:00:03]} Nc5 {[%emt 0:00:09]} 66. Bc4 {[%emt 0:00:05]} Bd8 {[%emt 0:00:10]} 67. Ba2 {[%emt 0:00:09]} Bh4 {[%emt 0:00:05]} 68. f4+ {[%emt 0:00:06]} Kd6 {[%emt 0:00:24]} 69. Kf3 {[%emt 0:00:07]} Na4 {[%emt 0:00:52]} 70. Bb3 {[%emt 0:00:07]} Nc3 {[%emt 0:00:07]} 71. e4 {[%emt 0:00:14]} Nb5 {[%emt 0:00:17]} 72. e5+ {[%emt 0:00:03]} Ke7 {[%emt 0:00:14]} 73. Kg4 {[%emt 0:00:04]} Be1 {[%emt 0:00:05]} 74. Bc2 {[%emt 0:00:03]} Nd4 {[%emt 0:00:04]} 75. Bb1 {[%emt 0:00:04]} Nc6 {[%emt 0:00:23]} 76. f5 {[%emt 0:00:08]} Nxe5+ {[%emt 0:00:04]} 77. Kh3 {[%emt 0:00:02]} 1/2-1/2

[Event "RUS-ch Rapid Men 2018"]
[Site "Sochi"]
[Date "2018.10.05"]
[Round "1"]
[White "Sakaev, Konstantin"]
[Black "Pshmahov, Osman"]
[Result "1-0"]
[ECO "D35"]
[WhiteElo "2584"]
[BlackElo "2011"]
[Annotator "ChessBase"]
[PlyCount "78"]
[EventDate "2018.10.05"]
[EventType "swiss"]
[EventCountry "RUS"]
[SourceTitle "playchess.com"]
[Source "ChessBase"]
[SourceQuality "1"]
[TimeControl "900+10"]

1. d4 {[%emt 0:00:00]} Nf6 {[%emt 0:00:00]} 2. c4 {[%emt 0:00:00]} e6 {[%emt 0:00:00]} 3. Nc3 {[%emt 0:00:00]} d5 {[%emt 0:00:00]} 4. cxd5 {[%emt 0:00:01]} exd5 {[%emt 0:00:00]} 5. Bg5 {[%emt 0:00:03]} Be7 {[%emt 0:00:01]} 6. e3 {[%emt 0:00:02]} c6 {[%emt 0:00:02]} 7. Bd3 {[%emt 0:00:02]} O-O {[%emt 0:00:03]} 8. Nge2 {[%emt 0:00:05]} h6 {[%emt 0:00:53]} 9. Bh4 {[%emt 0:00:03]} Nbd7 {[%emt 0:00:02]} 10. Qc2 {[%emt 0:00:07]} Re8 {[%emt 0:01:44]} 11. O-O {[%emt 0:00:04]} Nf8 {[%emt 0:00:31]} 12. f3 {[%emt 0:00:10]} c5 {[%emt 0:00:25]} 13. Rad1 {[%emt 0:01:59]} c4 {[%emt 0:00:14]} 14. Bf5 {[%emt 0:00:02]} Bxf5 {[%emt 0:00:01]} 15. Qxf5 {[%emt 0:00:02]} Qd7 {[%emt 0:00:01]} 16. Qxd7 {[%emt 0:01:58]} N8xd7 {[%emt 0:00:02]} 17. Bf2 {[%emt 0:00:22]} Bd6 {[%emt 0:06:00]} 18. Ng3 {[%emt 0:01:18]} g6 {[%emt 0:00:18]} 19. Rfe1 {[%emt 0:00:03]} a6 {[%emt 0:04:01]} 20. e4 {[%emt 0:00:24]} Bb4 {[%emt 0:00:16]} 21. e5 {[%emt 0:01:45]} Bxc3 {[%emt 0:00:24]} 22. bxc3 {[%emt 0:00:03]} Nh7 {[%emt 0:00:01]} 23. Nf1 {[%emt 0:01:14]} b5 {[%emt 0:00:54]} 24. Ne3 {[%emt 0:00:03]} Nb6 {[%emt 0:00:01]} 25. f4 {[%emt 0:00:07]} f5 {[%emt 0:00:13]} 26. g4 {[%emt 0:00:04]} fxg4 {[%emt 0:00:50]} 27. Nxg4 {[%emt 0:00:02]} h5 {[%emt 0:00:02]} 28. Ne3 {[%emt 0:00:13]} Na4 {[%emt 0:01:44]} 29. Rc1 {[%emt 0:01:44]} Rad8 {[%emt 0:00:45]} 30. Bh4 {[%emt 0:00:12]} Rd7 {[%emt 0:00:00]} 31. f5 {[%emt 0:01:41]} gxf5 {[%emt 0:00:04]} 32. Nxf5 {[%emt 0:00:02]} Nf8 {[%emt 0:00:04]} 33. Re3 {[%emt 0:01:03]} Ne6 {[%emt 0:00:26]} 34. Kh1 {[%emt 0:00:39]} Kh7 {[%emt 0:00:05]} 35. Ng3 {[%emt 0:00:55]} Kh6 {[%emt 0:00:31]} 36. Rf1 {[%emt 0:00:35]} Ng7 {[%emt 0:00:11]} 37. Rf6+ {[%emt 0:01:06]} Kh7 {[%emt 0:00:01]} 38. Rxa6 {[%emt 0:00:12]} Rf8 {[%emt 0:00:13]} 39. Bf6 {[%emt 0:01:27]} Ne6 {[%emt 0:00:11]} 1-0